bitfinex/quotes_ETHUSD_20240715
["timestamp","ask_amount","ask_price","bid_price","bid_amount"]
[1721073985851,0.07552254,3417.1,3416.6,2.92686]
[1721073986076,2.92627,3417.4,3416.6,2.92686]
[1721073986381,0.07548367,3417.0,3416.7,35.0]
[1721073986584,2.92627,3417.4,3416.7,35.0]
[1721073986746,0.07560026,3417.3,3416.9,2.92656]
[1721073986952,0.07560026,3417.3,3416.8,2.92666]
[1721073987176,2.92596,3417.7,3416.8,2.92666]
[1721073987590,0.07568362,3417.6,3416.8,2.92666]
[1721073988572,0.07568362,3417.6,3417.0,2.92653]
[1721073989289,2.92596,3417.7,3417.0,2.92653]
[1721073989587,2.92596,3417.7,3416.8,2.92666]
[1721073989964,2.92603,3417.6,3416.8,2.92666]
[1721073991265,2.92603,3417.6,3416.7,37.91736562]
[1721073991465,2.92626,3417.4,3416.7,35.0]
[1721073991663,2.92586,3417.8,3416.7,35.0]
[1721073991894,0.0754849,3417.3,3416.7,35.0]
[1721073992250,2.92596,3417.7,3417.0,2.92653]
[1721073992687,2.92596,3417.7,3416.8,2.9267]
[1721073992986,3.511142,3417.7,3416.8,2.9267]
[1721073993191,3.511142,3417.7,3416.9,2.92661]
[1721073994201,2.92596,3417.7,3416.9,2.92661]
[1721073994354,2.92596,3417.7,3417.0,2.92653]
[1721073995038,2.92603,3417.6,3416.7,37.92679]
[1721073996026,2.92586,3417.8,3416.7,37.92679]
[1721073996221,0.07485068,3417.5,3416.9,2.92656]
[1721073996394,0.07485068,3417.5,3417.1,2.3294]
[1721073996597,2.92586,3417.8,3417.1,2.3294]
[1721073997516,2.92557,3418.2,3417.1,2.3294]
[1721073997832,2.92557,3418.2,3417.1,5.25585]
[1721073997833,2.92568,3418.0,3417.1,5.25585]
[1721073998328,2.92568,3418.0,3417.3,2.92627]
[1721073998633,2.92552,3418.2,3417.4,2.92618]
[1721073998834,0.07503924,3417.9,3417.4,2.92618]
[1721073999201,0.07503924,3417.9,3417.5,2.9261]
[1721073999408,2.92534,3418.4,3417.5,2.9261]
[1721073999596,2.92534,3418.4,3417.2,2.92631]
[1721073999597,1.022534,3418.3,3417.3,2.92623]
[1721073999920,3.39106813,3418.8,3417.4,35.0]
[1721073999921,2.92559,3418.2,3417.4,35.0]
[1721074000130,2.92563,3418.1,3417.4,37.92619]
[1721074000452,2.92549,3418.3,3417.4,37.92619]
[1721074000799,2.92558,3418.2,3417.4,37.92619]
[1721074001035,2.92561,3418.1,3417.4,35.0]
[1721074002208,2.92591,3417.8,3416.9,2.92655]
[1721074002454,2.92591,3417.8,3417.0,3.0]
[1721074002657,0.07497514,3417.7,3417.0,3.0]
[1721074002825,0.07497514,3417.7,3417.1,37.92644]
[1721074003029,2.92591,3417.8,3417.1,37.92644]
[1721074003231,2.92591,3417.8,3417.1,40.84380562]
[1721074003426,2.92591,3417.8,3417.1,37.91736562]
[1721074003629,2.92591,3417.8,3417.1,35.0]
[1721074004465,2.92591,3417.8,3417.1,37.92644]
[1721074004616,2.92601,3417.7,3417.1,35.0]
[1721074004813,2.92601,3417.7,3417.0,3.0]
[1721074005116,2.92601,3417.7,3416.9,5.92659]
[1721074005316,2.92601,3417.7,3417.0,35.0]
[1721074005729,2.92604,3417.6,3417.0,35.0]
[1721074006353,2.92591,3417.8,3417.0,35.0]
[1721074006520,2.92571,3418.0,3417.1,2.92644]
[1721074007952,2.92571,3418.0,3417.2,35.0]
[1721074008852,2.9258,3417.9,3417.2,35.0]
[1721074009344,2.9258,3417.9,3417.2,37.91736562]
[1721074009551,2.92562,3418.1,3417.3,2.2974]
[1721074010282,2.92532,3418.5,3417.4,37.92618]
[1721074010579,7.3,3418.7,3417.4,35.0]
[1721074010580,2.92512,3418.7,3417.4,35.0]
[1721074010892,0.32311881,3418.6,3417.4,37.91736562]
[1721074011378,3.24833881,3418.6,3417.8,2.92584]
[1721074011597,2.92529,3418.5,3417.6,2.92595]
[1721074011887,0.32311881,3418.6,3417.6,2.92595]
[1721074011888,2.92536,3418.4,3417.7,2.92588]
[1721074012035,2.92536,3418.4,3417.7,37.92588]
[1721074012789,3.53342757,3418.6,3417.8,2.92584]
[1721074012944,2.92517,3418.6,3417.8,2.92584]
[1721074013143,3.53310757,3419.0,3417.9,5.32169]
[1721074013372,3.53310757,3419.0,3418.1,2.92557]
[1721074013853,2.92485,3419.0,3418.1,2.92557]
[1721074014054,2.92505,3418.8,3418.1,2.92557]
[1721074014572,0.07060099,3418.7,3418.1,2.92557]
[1721074014739,0.07060099,3418.7,3417.9,5.32169]
[1721074014740,2.99571099,3418.7,3417.9,5.32169]
[1721074015166,2.99571099,3418.7,3418.0,2.92566]
[1721074016254,2.99571099,3418.7,3418.0,3.88396619]
[1721074016956,2.92534,3418.4,3417.7,37.91736562]
[1721074017145,2.92534,3418.4,3417.7,2.91736562]
[1721074017343,2.92534,3418.4,3417.5,2.92608]
[1721074017344,0.07050639,3418.3,3417.6,2.92602]
[1721074017693,0.07050639,3418.3,3417.4,5.32219]
[1721074017694,2.99599639,3418.3,3417.4,5.32219]
[1721074017852,2.92553,3418.2,3417.5,2.92611]
[1721074018056,0.07046529,3418.2,3417.6,2.92602]
[1721074018267,2.92534,3418.4,3417.6,37.92602]
[1721074018468,0.07042645,3418.1,3417.7,2.91736562]
[1721074018643,2.92544,3418.3,3417.7,2.91736562]
[1721074018845,2.92544,3418.3,3417.6,2.92602]
[1721074018846,0.07038761,3418.0,3417.6,2.92602]
[1721074019047,2.92544,3418.3,3417.4,5.32213]
[1721074019247,0.07034876,3417.9,3417.3,38.0]
[1721074019483,2.92554,3418.2,3417.3,3.0]
[1721074019484,3.53371157,3418.2,3417.3,3.0]
[1721074019685,0.07030458,3417.8,3417.4,2.92619]
[1721074019944,2.92554,3418.2,3417.5,0.885249]
[1721074020149,0.07026574,3417.7,3417.5,0.885249]
[1721074020392,2.92554,3418.2,3417.5,0.885249]
[1721074020548,0.07022689,3417.6,3417.5,0.885249]
[1721074020753,2.9256,3418.1,3417.5,0.885249]
[1721074020949,2.9256,3418.1,3417.2,2.9263]
[1721074020950,0.07005936,3417.6,3417.2,2.9263]
[1721074021150,2.9257,3418.0,3417.2,2.9263]
[1721074021350,0.0700205,3417.5,3417.3,2.92625]
[1721074021575,2.92561,3418.1,3417.3,2.92625]
[1721074022053,0.06993233,3418.0,3416.8,5.32265]
[1721074022256,2.92596,3417.7,3416.9,7.498885]
[1721074022654,0.06976175,3417.6,3416.8,2.396]
[1721074022854,0.06976175,3417.6,3416.5,2.92693]
[1721074022855,2.92611,3417.5,3416.5,2.92693]
[1721074023082,2.99583289,3417.5,3416.7,2.92674]
[1721074023468,2.99583289,3417.5,3416.8,2.9267]
[1721074023655,0.06972289,3417.5,3416.8,2.9267]
[1721074023852,2.92604,3417.6,3416.9,0.585344]
[1721074024057,2.92604,3417.6,3416.8,2.9267]
[1721074024058,0.06967417,3417.4,3416.8,2.9267]
[1721074024291,2.92604,3417.6,3416.8,2.9267]
[1721074025882,0.06971303,3417.5,3416.8,2.9267]
[1721074026256,2.99583303,3417.5,3416.8,2.9267]
[1721074026966,0.06971303,3417.5,3416.8,2.9267]
[1721074027167,0.06971303,3417.5,3416.9,2.91736562]
[1721074027381,2.92603,3417.6,3416.9,2.91736562]
[1721074027587,0.06966203,3417.4,3416.8,2.9267]
[1721074027757,0.06970089,3417.5,3416.9,2.9266]
[1721074027952,3.53231928,3417.7,3416.9,2.9266]
[1721074027953,0.06962317,3417.3,3416.9,2.9266]
[1721074028158,0.06966203,3417.4,3416.9,2.9266]
[1721074028499,0.60635928,3417.6,3417.1,2.92643]
[1721074028659,0.06962317,3417.3,3417.1,2.92643]
[1721074028889,0.60635928,3417.7,3417.2,0.585303]
[1721074029089,0.60635928,3417.7,3417.1,2.92643]
[1721074029090,0.06958431,3417.2,3417.1,2.92643]
[1721074029291,0.60635928,3417.7,3417.1,2.92643]
[1721074029582,0.60635928,3417.8,3417.2,2.92636]
[1721074030395,0.60635928,3417.8,3417.4,2.92619]
[1721074030603,5.04788748,3418.1,3417.4,2.92619]
[1721074030604,0.60635928,3417.9,3417.4,2.92619]
[1721074031530,0.60635928,3417.8,3417.4,2.92619]
[1721074031692,0.60635928,3417.9,3417.4,2.92619]
[1721074032803,0.60635928,3417.8,3417.5,35.0]
[1721074033001,0.60635928,3417.9,3417.5,35.0]
[1721074033196,0.06752916,3417.7,3417.5,37.91736562]
[1721074033402,0.60635928,3417.9,3417.5,37.91736562]
[1721074033599,0.0674903,3417.6,3417.5,40.84347562]
[1721074033798,0.60635928,3418.3,3418.0,2.92561]
[1721074034042,0.60635928,3418.5,3418.1,0.585138]
[1721074034330,0.60635928,3418.5,3418.0,2.4406]
[1721074034331,0.60991545,3418.6,3418.2,2.92545]
[1721074035208,0.60964256,3418.5,3417.8,2.92583]
[1721074035626,0.60964256,3418.5,3417.5,40.91736562]
[1721074035627,0.60964256,3418.3,3417.5,40.92608]
[1721074035926,3.53517256,3418.2,3417.5,35.0]
[1721074036130,3.53517256,3418.2,3417.3,2.92623]
[1721074036131,0.60964256,3418.0,3417.3,2.92623]
[1721074036330,0.60964256,3417.9,3417.3,2.92623]
[1721074036687,0.60964256,3417.8,3417.4,2.92619]
[1721074037397,0.60964256,3417.9,3417.5,2.92604]
[1721074037593,0.60964256,3417.9,3417.4,5.84349562]
[1721074037594,0.60964256,3417.9,3417.6,2.92601]
[1721074037813,0.60964256,3418.1,3417.6,2.92601]
[1721074038212,0.60964256,3418.1,3417.7,2.92588]
[1721074038396,0.60964256,3418.4,3417.7,2.92588]
[1721074038597,0.60964256,3418.4,3417.8,2.92584]
[1721074038897,0.60964256,3418.3,3417.9,35.0]
[1721074039534,0.60964256,3418.3,3417.8,2.92584]
[1721074039916,0.60964256,3418.3,3417.9,2.92577]
[1721074040220,0.60964256,3418.4,3418.0,2.4406]
[1721074040640,0.60964256,3418.5,3418.0,2.4406]
[1721074041133,0.60964256,3418.4,3418.0,2.4406]
[1721074041503,0.60942988,3418.4,3418.1,35.0]
[1721074041915,0.6092402,3418.4,3418.1,35.0]
[1721074042498,0.06122173,3418.3,3418.1,35.0]
[1721074043430,0.06122173,3418.3,3417.7,3.518468]
[1721074043630,0.06122173,3418.3,3417.8,2.92583]
[1721074043833,0.06122173,3418.3,3417.9,2.92576]
[1721074043834,0.6092402,3418.3,3417.9,2.92576]
[1721074044052,0.05944798,3418.2,3417.9,2.92576]
[1721074044549,0.05940914,3418.1,3417.9,2.92576]
[1721074044725,0.6092402,3418.4,3417.7,37.92588]
[1721074044908,0.0593703,3418.0,3417.7,37.92588]
[1721074045105,0.6092402,3418.3,3417.8,2.91736562]
[1721074045308,0.05933146,3417.9,3417.8,2.91736562]
[1721074045553,0.6092402,3418.3,3417.8,2.92585]
[1721074045712,0.05933146,3417.9,3417.8,2.92585]
[1721074046047,0.6092402,3418.6,3418.1,2.92555]
[1721074046347,0.9138603,3418.8,3418.4,2.92527]
[1721074046348,0.6092402,3418.8,3418.4,2.92527]
[1721074047139,0.6092402,3418.8,3417.6,2.3002]
[1721074047140,0.6092402,3418.7,3417.6,2.3002]
[1721074047311,2.92528,3418.5,3417.6,2.926]
[1721074047508,0.6092402,3418.4,3417.6,2.926]
[1721074047748,2.92528,3418.5,3417.6,2.926]
[1721074047921,0.60910971,3418.3,3417.2,2.3002]
[1721074048127,0.60910971,3418.1,3417.2,2.3002]
[1721074048348,0.60910971,3418.1,3416.8,1.52592702]
[1721074048558,0.60910971,3418.1,3416.7,2.91339943]
[1721074048559,3.53511971,3417.7,3416.7,2.3002]
[1721074048712,0.60910971,3417.6,3416.8,2.9267]
[1721074048916,0.60910971,3417.6,3416.8,4.482075]
[1721074048917,0.60910971,3417.5,3416.8,4.482075]
[1721074049141,0.60910971,3417.5,3416.2,5.44418]
[1721074049142,3.53531971,3417.4,3416.2,5.22735]
[1721074049326,0.60910971,3417.2,3416.3,2.92712]
[1721074049532,3.84002456,3417.3,3416.3,2.92712]
[1721074049533,0.60910971,3417.1,3416.3,2.92712]
[1721074049841,0.60910971,3417.1,3416.4,2.92704]
[1721074050266,0.60910971,3417.1,3416.5,2.92696]
[1721074050470,3.53539971,3417.3,3416.5,3.742398]
[1721074050620,2.92638,3417.2,3416.5,3.742398]
[1721074050927,0.60873739,3417.4,3416.5,3.742398]
[1721074051115,0.91310609,3417.6,3416.7,2.92675]
[1721074051116,0.0589114,3417.1,3416.7,2.92675]
[1721074051461,0.60873739,3417.6,3416.8,0.67276769]
[1721074051462,3.53472627,3417.6,3416.8,0.67276769]
[1721074051756,0.05887253,3417.0,3416.7,2.98527867]
[1721074051915,0.05887253,3417.0,3416.8,2.9267]
[1721074052120,3.53472627,3417.6,3416.8,2.9267]
[1721074052359,2.92591,3417.8,3417.0,2.2886]
[1721074052360,0.60869627,3417.8,3417.0,2.2886]
[1721074052521,0.60869627,3417.7,3417.1,2.92642]
[1721074052716,0.60869627,3417.7,3417.2,35.0]
[1721074052916,0.60869627,3417.8,3417.2,35.0]
[1721074053322,0.60869627,3417.7,3417.1,2.92642]
[1721074053533,0.66783621,3417.7,3417.1,2.92642]
[1721074053952,0.60887121,3417.7,3417.1,2.92642]
[1721074054125,0.60887121,3417.8,3417.1,5.84378562]
[1721074054323,0.05910109,3417.6,3417.1,5.84378562]
[1721074054654,3.53473121,3417.8,3417.1,2.92642]
[1721074054855,0.05906224,3417.5,3417.2,35.0]
[1721074055062,3.53473121,3417.8,3417.2,35.0]
[1721074055273,0.05902338,3417.4,3417.2,35.0]
[1721074055562,3.53473121,3417.8,3417.1,2.92642]
[1721074055720,0.05898452,3417.3,3417.1,2.92642]
[1721074056066,0.60887121,3417.8,3417.2,0.814163]
[1721074056226,0.60887121,3417.8,3417.1,37.92642]
[1721074056764,0.60887121,3417.9,3417.4,2.92618]
[1721074056946,0.60887121,3418.0,3417.4,2.92618]
[1721074057157,0.05917879,3417.8,3417.4,2.92612]
[1721074057327,0.91330682,3418.1,3417.5,35.585248]
[1721074057328,0.60887121,3418.1,3417.5,35.585248]
[1721074057529,0.60887121,3418.0,3417.5,35.0]
[1721074057727,0.60887121,3417.9,3417.5,35.0]
[1721074058068,0.60887121,3417.8,3417.5,35.0]
[1721074058252,0.0591184,3417.7,3417.3,2.92628]
[1721074058454,0.0591184,3417.7,3417.1,2.92643]
[1721074058658,0.05907955,3417.6,3417.2,35.0]
[1721074058826,0.05907955,3417.6,3417.2,37.92635]
[1721074059039,3.83903682,3418.0,3417.2,37.92635]
[1721074059040,0.60887121,3417.9,3417.2,37.92635]
[1721074059350,0.66802846,3417.8,3417.2,37.92635]
[1721074059679,0.05915725,3417.8,3417.4,2.92618]
[1721074059976,0.60887121,3417.9,3417.2,40.84368562]
[1721074060136,0.60887121,3417.9,3417.3,2.92621]
[1721074060462,0.05916185,3417.8,3417.3,2.92621]
[1721074060677,2.9256,3418.1,3417.3,2.92621]
[1721074060678,3.53447121,3418.1,3417.3,4.20092419]
[1721074060987,0.059123,3417.7,3417.3,2.92621]
[1721074061144,0.61028912,3417.9,3417.3,2.92621]
[1721074061344,0.05908415,3417.6,3417.3,2.92621]
[1721074061545,0.61028912,3417.8,3417.3,2.92621]
[1721074061970,0.05912687,3417.7,3417.3,2.92621]
[1721074062177,0.61028912,3417.9,3417.3,2.92621]
[1721074062375,0.05787129,3417.6,3417.3,2.92621]
[1721074062579,0.61028912,3417.8,3417.3,2.92621]
[1721074062888,0.05790567,3417.7,3417.2,37.91736562]
[1721074063037,0.61028912,3417.8,3417.0,2.2886]
[1721074063246,0.66819479,3417.7,3416.9,5.92662]
[1721074063554,0.61049212,3417.6,3416.9,5.92662]
[1721074063944,0.61049212,3417.6,3417.0,2.92653]
[1721074064146,0.61049212,3417.6,3417.1,3.0]
[1721074064383,3.53643212,3417.7,3417.1,3.0]
[1721074064884,3.53643212,3417.7,3417.0,2.92653]
[1721074066280,0.61049212,3417.7,3417.2,2.9263]
[1721074066489,0.61049212,3417.9,3417.2,2.9263]
[1721074066687,0.05780399,3417.6,3417.3,2.92625]
[1721074066878,0.61049212,3417.9,3417.3,2.92625]
[1721074067054,0.0578817,3417.8,3417.3,2.92625]
[1721074067481,1.22098425,3418.3,3417.5,2.92611]
[1721074067482,0.61049212,3418.1,3417.5,2.92611]
[1721074067710,0.05656128,3417.7,3417.5,2.92611]
[1721074067856,0.61049212,3418.2,3417.5,2.92611]
[1721074068052,0.05671668,3418.1,3417.5,2.92611]
[1721074068584,0.6672088,3418.1,3417.6,35.0]
[1721074068786,0.05671668,3418.1,3417.6,35.0]
[1721074068986,0.6672088,3418.1,3417.6,35.0]
[1721074069591,0.61049212,3418.0,3417.6,4.43084719]
[1721074069754,0.05671668,3418.1,3417.6,4.43084719]
[1721074069755,0.6672088,3418.1,3417.6,4.43084719]
[1721074069946,0.05663048,3417.9,3417.6,39.43084719]
[1721074070166,0.60984075,3418.2,3417.6,39.43084719]
[1721074070384,0.60987556,3418.5,3417.8,2.92582]
[1721074070578,0.60987556,3418.5,3418.0,2.92566]
[1721074070780,0.60987556,3418.6,3418.1,5.38242]
[1721074071206,0.60987556,3418.6,3418.2,2.92549]
[1721074071413,0.60987556,3418.7,3418.1,2.4569]
[1721074071702,0.60987556,3418.7,3417.8,2.92583]
[1721074071703,0.60987556,3418.5,3417.8,2.92583]
[1721074071903,0.60987556,3418.5,3418.0,2.92568]
[1721074073205,0.60977366,3418.5,3418.0,2.92568]
[1721074074479,0.60977366,3418.6,3418.1,2.92559]
[1721074074680,0.05367206,3418.5,3418.2,2.92543]
[1721074074976,0.60977366,3418.8,3418.3,3.217953]
[1721074075207,0.91466049,3419.0,3418.3,3.217953]
[1721074075208,0.60977366,3418.9,3418.3,3.217953]
[1721074075415,0.05381926,3418.7,3418.5,0.0125]
[1721074075618,0.66359292,3418.7,3418.5,0.0125]
[1721074075909,0.66355409,3418.6,3418.5,0.0125]
[1721074076322,0.66338685,3418.6,3418.5,0.0125]
[1721074077816,0.05378043,3418.6,3418.5,0.0125]
[1721074078706,0.66338685,3418.6,3418.5,0.0125]
[1721074079699,3.58855685,3418.6,3418.5,0.0125]
[1721074079902,0.6633,3418.6,3418.5,0.0125]
[1721074080102,0.05378043,3418.6,3418.5,0.0125]
[1721074080490,0.60951957,3418.8,3418.5,0.0125]
[1721074080781,0.05384092,3418.7,3418.5,0.0125]
[1721074080981,0.60951957,3418.8,3418.5,0.0125]
[1721074081220,0.05384092,3418.7,3418.5,0.0125]
[1721074081598,0.60951957,3418.8,3418.5,0.0125]
[1721074081795,0.05380209,3418.6,3418.5,0.0125]
[1721074081982,0.60951957,3418.8,3418.5,0.0125]
[1721074082181,0.05384092,3418.7,3418.5,0.0125]
[1721074082410,0.60951957,3418.8,3418.5,0.0125]
[1721074082609,0.05380209,3418.6,3418.5,0.0125]
[1721074083131,0.60951957,3418.8,3418.5,0.0125]
[1721074083310,0.05384092,3418.7,3418.5,0.0125]
[1721074083493,0.60951957,3418.9,3418.5,0.0125]
[1721074083704,0.05389209,3418.8,3418.5,0.0125]
[1721074084220,0.66341166,3418.8,3418.5,0.0125]
[1721074084388,0.05389209,3418.8,3418.5,0.0125]
[1721074085323,0.05385558,3418.7,3418.5,0.0125]
[1721074085523,0.6099534,3418.9,3418.5,0.0125]
[1721074085734,0.05389441,3418.8,3418.5,0.0125]
[1721074085901,0.66384781,3418.8,3418.5,0.0125]
[1721074087127,2.92517,3418.6,3418.5,0.0125]
[1721074087330,7.1238879,3418.6,3418.5,0.0125]
[1721074087694,0.96907453,3418.6,3418.5,0.0125]
[1721074088525,3.89424453,3418.6,3418.5,0.0125]
[1721074088891,0.96907453,3418.6,3418.5,0.0125]
[1721074089528,0.0536411,3418.6,3418.5,0.0125]
[1721074089930,0.96907453,3418.6,3418.5,0.0125]
[1721074090237,0.0536411,3418.6,3418.5,0.0125]
[1721074090450,0.66414538,3418.6,3418.5,0.0125]
[1721074090619,0.0536411,3418.6,3418.5,0.0125]
[1721074090826,0.96907453,3418.6,3418.5,0.0125]
[1721074091549,0.96873368,3418.6,3418.5,0.0125]
[1721074091746,3.89390368,3418.6,3418.5,0.0125]
[1721074092848,0.96873368,3418.6,3418.5,0.0125]
[1721074094521,2.9788111,3418.6,3418.5,0.0125]
[1721074094841,4.48409941,3418.6,3418.5,0.0125]
[1721074095046,2.9788111,3418.6,3418.5,0.0125]
[1721074098369,4.1986847,3418.6,3418.5,0.0125]
[1721074099636,7.1238547,3418.6,3418.5,0.0125]
[1721074099850,8.45051057,3418.6,3418.5,0.0125]
[1721074100048,10.07963032,3418.6,3418.5,0.0125]
[1721074100252,11.91027727,3418.6,3418.5,0.0125]
[1721074100981,10.07963032,3418.6,3418.5,0.0125]
[1721074101137,10.97254304,3418.6,3418.5,0.0125]
[1721074101481,10.97269231,3418.6,3418.5,0.0125]
[1721074103234,19.49986231,3418.6,3418.5,0.0125]
[1721074103558,2.92626,3417.4,3417.2,7.4]
[1721074103755,0.66459904,3417.3,3416.9,2.4839]
[1721074103943,0.61146513,3417.2,3416.9,2.4839]
[1721074104149,0.05298342,3417.1,3416.5,7.4]
[1721074104364,0.05298342,3417.1,3416.5,6.409773]
[1721074104365,0.61116212,3417.1,3416.5,6.409773]
[1721074104569,3.84309318,3417.3,3416.5,6.409773]
[1721074104570,0.05294455,3417.0,3416.5,6.409773]
[1721074104772,0.61116212,3417.2,3416.5,6.409773]
[1721074104934,0.05298342,3417.1,3416.5,6.409773]
[1721074107245,0.05298342,3417.1,3416.5,2.4501]
[1721074107558,2.92656,3417.0,3416.5,2.4501]
[1721074107753,0.0528222,3416.9,3416.5,2.4501]
[1721074108590,0.0528222,3416.9,3416.2,2.92722]
[1721074109969,2.9794522,3416.9,3416.2,2.92722]
[1721074110199,2.9794522,3416.9,3416.2,4.057691]
[1721074110613,0.0528222,3416.9,3416.3,2.92713]
[1721074110792,2.9265,3417.1,3416.3,2.92713]
[1721074111112,0.0528487,3417.0,3416.3,2.92713]
[1721074111270,2.9793987,3417.0,3416.4,0.9434991]
[1721074114071,0.0528487,3417.0,3416.4,3.8705491]
[1721074114255,0.0528487,3417.0,3415.9,3.0]
[1721074114256,0.0528487,3417.0,3416.7,2.92674]
[1721074114456,3.53736212,3417.4,3416.7,2.92674]
[1721074114701,0.0528106,3416.9,3416.7,2.92674]
[1721074114866,3.53736212,3417.4,3416.7,2.92674]
[1721074115290,2.9262,3417.4,3416.7,2.92674]
[1721074115496,3.53736212,3417.4,3416.7,2.92674]
[1721074117587,3.53736212,3417.4,3416.7,3.745086]
[1721074117773,2.92598,3417.7,3416.7,3.745086]
[1721074117976,0.0530896,3417.6,3416.7,3.745086]
[1721074118177,0.0530896,3417.6,3417.0,2.92653]
[1721074118476,0.0530896,3417.6,3417.2,2.4449]
[1721074118675,0.0530896,3417.6,3417.2,5.37126]
[1721074119071,2.92582,3417.9,3417.2,2.92636]
[1721074119277,3.53698212,3417.9,3417.2,2.92636]
[1721074119490,0.05317274,3417.8,3417.2,2.92636]
[1721074123120,0.05317274,3417.8,3417.1,2.92645]
[1721074123324,2.97903274,3417.8,3417.1,2.92645]
[1721074123505,3.58959597,3417.8,3417.1,2.92645]
[1721074124687,2.97903274,3417.8,3417.1,2.92645]
[1721074125101,2.97903274,3417.8,3416.8,2.4449]
[1721074125102,2.92608,3417.6,3416.8,2.4449]
[1721074125303,0.79629882,3417.8,3416.8,5.37161]
[1721074125502,0.05297234,3417.5,3417.1,2.92638]
[1721074125719,0.05315492,3417.7,3417.2,2.92637]
[1721074125925,0.05305535,3417.4,3417.2,2.92637]
[1721074126097,2.92577,3417.9,3417.2,3.511653]
[1721074126655,0.05321078,3417.8,3417.2,3.511653]
[1721074127492,0.05321078,3417.8,3417.4,2.4825]
[1721074127736,0.05321078,3417.8,3417.6,2.92597]
[1721074128034,0.05317812,3417.7,3417.6,2.92597]
[1721074128537,3.53590323,3418.4,3417.7,2.92594]
[1721074128716,2.92534,3418.4,3417.7,2.92594]
[1721074128892,0.05341122,3418.3,3417.7,2.92594]
[1721074129705,0.05341122,3418.3,3417.7,2.92586]
[1721074130201,0.05341122,3418.3,3417.8,2.92582]
[1721074130427,0.61112939,3418.5,3417.9,2.92575]
[1721074130745,0.05345006,3418.4,3417.9,2.92575]
[1721074131143,3.53635939,3418.6,3417.9,2.92575]
[1721074131318,0.05341122,3418.3,3417.9,2.92575]
[1721074131518,3.53635939,3418.6,3417.9,3.510911]
[1721074131765,0.05337238,3418.2,3417.9,2.92575]
[1721074131933,2.92527,3418.5,3417.7,2.92586]
[1721074132137,0.05333353,3418.1,3417.7,2.92586]
[1721074132317,2.92527,3418.5,3417.7,2.92586]
[1721074132737,0.05345006,3418.4,3417.7,2.92586]
[1721074132957,0.05345006,3418.4,3417.8,3.511034]
[1721074136741,0.05345006,3418.4,3417.6,2.92596]
[1721074136742,2.97880006,3418.4,3417.6,2.92596]
[1721074139666,2.92544,3418.3,3417.6,2.926]
[1721074140275,0.05106608,3418.2,3417.6,2.926]
[1721074141595,0.05106608,3418.2,3417.2,3.585283]
[1721074141596,2.97658608,3418.2,3417.2,3.0]
[1721074141875,2.92586,3417.8,3417.1,3.0]
[1721074142080,2.92574,3418.0,3417.1,3.0]
[1721074142081,2.92585,3417.9,3417.1,3.0]
[1721074142371,0.0509752,3417.7,3417.1,3.0]
[1721074142580,0.0509752,3417.7,3417.1,4.851798]
[1721074142781,2.92574,3418.0,3417.1,10.295248]
[1721074143341,2.92577,3417.9,3417.1,10.295248]
[1721074143536,0.61057129,3418.3,3417.3,2.92623]
[1721074143885,2.92556,3418.2,3417.4,3.9556228]
[1721074144876,0.04937508,3418.1,3417.4,3.9556228]
[1721074145075,2.97498508,3418.1,3417.5,35.0]
[1721074145266,2.97498508,3418.1,3417.3,2.92623]
[1721074145807,2.97498508,3418.1,3417.4,37.92619]
[1721074147569,0.04937508,3418.1,3417.5,2.9261]
[1721074147768,0.04937508,3418.1,3417.6,5.26716562]
[1721074148001,2.92543,3418.3,3417.6,5.26716562]
[1721074148205,0.04941392,3418.2,3417.6,5.26716562]
[1721074148366,2.92511,3418.7,3417.8,2.92583]
[1721074148571,2.92528,3418.5,3417.8,2.92583]
[1721074148801,0.0494916,3418.4,3417.9,35.0]
[1721074149225,2.92528,3418.5,3417.9,35.0]
[1721074149503,0.0494916,3418.4,3417.9,35.0]
[1721074149706,0.0494916,3418.4,3417.9,37.91736562]
[1721074149874,2.92528,3418.5,3417.9,37.91736562]
[1721074150382,0.0494916,3418.4,3417.9,37.91736562]
[1721074150605,2.92528,3418.5,3417.9,37.91736562]
[1721074151029,0.0494916,3418.4,3417.9,37.91736562]
[1721074151413,2.92528,3418.5,3417.9,37.91736562]
[1721074151646,5.85025,3418.7,3417.9,37.91736562]
[1721074151791,2.92518,3418.6,3418.0,1.27180619]
[1721074151987,0.91422439,3419.0,3418.0,1.27180619]
[1721074151988,0.60948292,3419.0,3418.1,2.2724]
[1721074152187,0.04952966,3418.5,3418.1,2.2724]
[1721074152501,0.04779269,3418.4,3418.2,35.0]
[1721074152700,0.04779269,3418.4,3418.3,2.91736562]
[1721074152904,2.90278292,3419.2,3418.3,2.91736562]
[1721074152905,2.92478,3419.1,3418.3,2.91736562]
[1721074153212,0.04802567,3419.0,3418.4,2.92532]
[1721074153521,0.60948292,3419.4,3418.5,35.0]
[1721074153522,2.92466,3419.2,3418.5,35.0]
[1721074153730,2.92466,3419.2,3418.5,37.91736562]
[1721074153731,0.04799855,3418.9,3418.5,37.91736562]
[1721074153938,2.92466,3419.2,3418.5,37.91736562]
[1721074154095,2.92449,3419.4,3418.5,37.91736562]
[1721074154096,2.92449,3419.4,3418.6,2.2724]
[1721074154625,0.04817472,3419.3,3418.6,2.2724]
[1721074154790,2.97279472,3419.3,3418.7,2.09015219]
[1721074154991,2.97279472,3419.3,3418.6,2.2724]
[1721074155433,0.04817472,3419.3,3418.6,2.2724]
[1721074155724,0.91416496,3419.8,3418.6,2.2724]
[1721074155725,2.9244,3419.5,3418.8,2.92499]
[1721074155933,0.04826136,3419.2,3418.9,35.0]
[1721074156089,2.9244,3419.5,3418.9,37.91736562]
[1721074156529,0.04833898,3419.4,3418.9,37.91736562]
[1721074156702,2.97282898,3419.4,3418.9,37.91736562]
[1721074157093,2.97282898,3419.4,3418.9,2.91736562]
[1721074157294,2.97282898,3419.4,3418.6,5.19752]
[1721074157512,2.97282898,3419.4,3418.7,2.92508]
[1721074157715,2.97282898,3419.4,3418.7,37.92508]
[1721074158127,0.04833898,3419.4,3418.7,2.92508]
[1721074158548,2.92423,3419.7,3418.7,2.92508]